Cogmind - Beta 13 @@@ ROGUE MODE // 2024.04.14 @ 19:28:36 Player: Millea Result: Destroyed self via exploding Power Conduit Performance ------------- Evolutions (3) 1500 Regions Visited (8) 1600 Robots Destroyed (156) 780 Value Destroyed (6106) 6106 Prototype IDs (30) 600 Alien Tech Used (0) 0 Bonus (2221) 2221 TOTAL SCORE: 12807 Bonus ------- High Alert Combat Kills 487 Follower Combat Kills 507 Entered Garrisons 200 Used RIF Installer 1000 Aligned with FarCom 300 Friendly Fire -273 Cogmind --------- Core Integrity 0/700 Matter 192/300 Energy 92/100 System Corruption 28% Temperature Cool (24) Movement Core (2450) Ox48 Location -7/Factory Parts ------- > --- POWER (1) -------- (None) > --- PROPULSION (7) --- (None) > --- UTILITY (3) ------ Cargo Storage Unit Relay Coupler [Hunter] (13) > --- WEAPON (2) ------- Gauss Cannon > --- INVENTORY (30) --- Advanced Heat Sink Cooling System Improved Cooling System YI-UF0's Bottomless Matter Pit (0) Particle Charger Cloak of Protection Improved Light Armor Plating Layered Medium Armor Plating Medium Reflective Plating Hacking Suite Hacking Suite Advanced System Shield Relay Coupler [NC] (22) Relay Coupler [Swarmer] (42) Component Analysis Suite Supersonic Drone Bay (1/1) Heavy EM Shotgun Advanced Plasma Cannon Flak Gun XL Autogun Array Grenade Launcher Missile Launcher Missile Launcher Missile Launcher Missile Launcher Peak State ------------ > --- POWER ------------ Reinforced Deuterium Engine > --- PROPULSION ------- Light Treads Light Treads Light Treads Armored Treads Armored Medium Treads Armored Huge Wheel > --- UTILITY ---------- Cargo Storage Unit Supersonic Drone Bay > --- WEAPON ----------- Lightning Gun Gauss Rifle > --- INVENTORY -------- Light Nuclear Core Armored Huge Wheel Improved Heat Sink Cooling System YI-UF0's Bottomless Matter Pit Particle Charger Cloak of Protection Improved Light Armor Plating Layered Medium Armor Plating Medium Reflective Plating Hacking Suite Hacking Suite Advanced System Shield Relay Coupler [NC] Relay Coupler [Swarmer] Relay Coupler [Grunt] Relay Coupler [Sentry] Relay Coupler [Sentry] Relay Coupler [Hunter] Arc Projector Advanced Plasma Cannon XL Autogun Array Hypervelocity Gauss Cannon Hypervelocity Gauss Cannon Grenade Launcher Rocket Launcher [Rating: 56] Favorites ----------- Power Reinforced Deuterium Engine Engine Reinforced Deuterium Engine Power Core Light Nuclear Core Propulsion Light Treads Treads Light Treads Wheel Armored Huge Wheel Utility Cargo Storage Unit Device System Restoration Module Storage Cargo Storage Unit Processor Targeting Computer Hackware Relay Coupler [NC] Protection Medium Reflective Plating Weapon Lightning Gun Energy Gun Lightning Gun Energy Cannon Beam Cannon Ballistic Gun Assault Rifle Ballistic Cannon Hypervelocity Gauss Cannon Launcher Rocket Launcher Special Weapon Remote Datajack Build | -11 -10 -10 -10 -9 -8 -8 -8 -7 ------- Run | Yrd Mat Min Exi Min Mat Gar Mat Fac Slots Evolved 6 | . . . . . 4 . . 2 Power . | . . . . . . . . . Propulsion 5 | . . . . . 4 . . 1 Utility 1 | . . . . . . . . 1 Weapon . | . . . . . . . . . Parts Attached 121 | 6 3 4 . 1 7 26 15 59 Power 11 | 1 1 1 . . 1 4 . 3 Engine 9 | 1 1 1 . . 1 3 . 2 Core 2 | . . . . . . 1 . 1 Reactor . | . . . . . . . . . Propulsion 50 | 2 . 1 . 1 6 15 6 19 Treads 39 | 2 . 1 . 1 6 15 4 10 Leg . | . . . . . . . . . Wheel 11 | . . . . . . . 2 9 Hover . | . . . . . . . . . Flight . | . . . . . . . . . Utility 20 | 1 2 1 . . . . . 16 Device 7 | . . . . . . . . 7 Storage 4 | 1 1 1 . . . . . 1 Processor 1 | . 1 . . . . . . . Hackware 6 | . . . . . . . . 6 Protection 2 | . . . . . . . . 2 Artifact . | . . . . . . . . . Weapon 40 | 2 . 1 . . . 7 9 21 Energy Gun 12 | . . . . . . 5 5 2 Energy Cannon 3 | . . 1 . . . . 1 1 Ballistic Gun 6 | 2 . . . . . 1 . 3 Ballistic Cannon 9 | . . . . . . . 3 6 Launcher 6 | . . . . . . 1 . 5 Special Weapon 4 | . . . . . . . . 4 Impact Weapon . | . . . . . . . . . Slashing Weapon . | . . . . . . . . . Piercing Weapon . | . . . . . . . . . Special Melee Weapon . | . . . . . . . . . Unidentified Prototypes 3 | . . . . . . . 1 2 Corrupted Parts 9 | . . . . . . 4 1 4 System Corruption 45 | . . . . . . 21 2 22 Parts Lost 49 | . . . . . 1 9 10 29 Power 6 | . . . . . 1 2 . 3 Propulsion 28 | . . . . . . 3 7 18 Utility . | . . . . . . . . . Weapon 15 | . . . . . . 4 3 8 Highest Loss Streak 8 | . . . . . 1 2 3 8 To Critical Strikes 1 | . . . . . . . . 1 Average Slot Usage (%) 83 | . 96 92 85 85 90 89 83 74 Engine 9 | . 14 14 14 14 9 7 9 6 Treads 35 | . 28 28 28 28 54 54 45 26 Wheel 3 | . . . . . . . 2 11 Storage 9 | . 14 14 14 14 9 9 9 7 Processor 1 | . 10 7 . . . . . . Energy Gun 5 | . . . . . . 15 11 3 Energy Cannon 3 | . . 9 14 14 9 1 . 1 Ballistic Gun 6 | . 28 18 14 14 9 1 . 2 Ballistic Cannon 3 | . . . . . . . 6 5 Naked Turns . | . . . . . . . . . Heaviest Build 175 | 12 32 152 152 152 152 163 175 174 Greatest Support 157 | 40 40 40 40 40 120 157 157 80 Greatest Overweight (x) 17 | . . 3 3 3 1 1 17 16 Average Overweight (x) 2 | . . . 3 3 1 1 2 5 Largest Inventory Capacity 30 | 8 15 30 30 30 30 30 30 30 Average Capacity 27 | 6 13 21 30 30 30 30 30 30 Most Carried 30 | 6 14 27 30 30 30 30 30 30 Average Carried 26 | 3 10 18 28 29 27 29 28 29 Final Capacity 30 | 8 15 30 30 30 30 30 30 30 Final Carried 30 | 6 14 27 30 30 30 30 29 29 Class Distribution -------------------- 80% | Hauler-Mutant 12% | Mutant 3% | Bothacker-Mutant 3% | Scavenger-Mutant Dominant Class ---------------- Mutant | -10/Materials Mutant | -10/Mines Hauler-Mutant | -10/Exiles Hauler-Mutant | -9/Mines Hauler-Mutant | -8/Materials Hauler-Mutant | -8/Garrison Hauler-Mutant | -8/Materials Hauler-Mutant | -7/Factory Resources | -11 -10 -10 -10 -9 -8 -8 -8 -7 ----------- Run | Yrd Mat Min Exi Min Mat Gar Mat Fac Matter Collected 4398 | 223 106 160 . 73 121 296 756 2663 Remotely . | . . . . . . . . . Salvage Created 5929 | . 193 346 . 304 279 1134 1777 1896 Parts 316 | . 20 26 . 19 21 55 77 98 Haulers Intercepted 8 | . 1 . . . 1 . 4 2 Recyclers Shooed 4 | . . . . . . . 1 3 Parts Field Recycled . | . . . . . . . . . Retrieved Matter . | . . . . . . . . . Parts Self-Destructed . | . . . . . . . . . Prevented . | . . . . . . . . . Kills | -11 -10 -10 -10 -9 -8 -8 -8 -7 ------- Run | Yrd Mat Min Exi Min Mat Gar Mat Fac Combat Hostiles Destroyed 106 | . 2 9 . 7 3 23 23 39 Melee 3 | . . . . . . 2 1 . Guns 35 | . 2 5 . 1 1 8 8 10 Cannons 36 | . . 4 . 6 2 1 8 15 AOE 19 | . . . . . . 4 2 13 Classes Destroyed 18 | . 3 4 . . . 3 4 4 Worker 12 | . . 1 . . . . 3 8 Builder 5 | . . . . . . . 2 3 Tunneler 2 | . . . . . . . 1 1 Hauler 8 | . 1 . . . 1 . 4 2 Recycler 11 | . . 1 . 1 1 . 5 3 Mechanic 1 | . . . . . . . . 1 Operator 2 | . . . . . . . 2 . Watcher 8 | . 2 . . . . . 2 4 Swarmer 18 | . . 4 . 3 . 3 4 4 Grunt 43 | . 2 3 . 4 . 14 11 9 Brawler 4 | . . . . . . 1 1 2 Duelist 2 | . . . . . . . . 2 Protector 2 | . . . . . . . . 2 Sentry 20 | . . 2 . . 3 4 6 5 Specialist 4 | . . . . . . . . 4 Hunter 4 | . . . . . . . 1 3 Programmer 8 | . . . . . . . . 8 Behemoth 1 | . . . . . . 1 . . Butcher 1 | . . . . . . 1 . . Best Kill Streak 16 | . 3 3 . 4 4 9 7 16 Combat Bots Only 11 | . 2 3 . 4 1 9 6 11 Max Kills in Single Turn 5 | . 1 1 . 1 1 2 2 5 Gunslinging . | . . . . . . . . . Exploded 4 | . . . . . . 2 1 4 Melee 1 | . . . . . . 1 1 . Uniques/NPCs Destroyed . | . . . . . . . . . Combat | -11 -10 -10 -10 -9 -8 -8 -8 -7 -------- Run | Yrd Mat Min Exi Min Mat Gar Mat Fac Hostile Shots Fired 990 | . 12 47 . 31 20 178 151 551 Missed 282 | . 1 14 . 14 6 43 27 177 Damage Taken 9625 | . 120 338 . 156 208 1908 1896 4999 Core 1240 | . . 42 . 40 . 253 194 711 Absorbed by Shields 62 | . . . . . . 62 . . Ignored by Resistances 49 | . . . . . . . . 49 Regen/Repaired (Parts) 119 | . . . . . . . 61 58 Core Remaining (%) 61 | 100 . . . 67 . . 18 . Volleys Fired 451 | . 13 32 . 16 15 83 114 178 Largest 2 | . 2 2 . 2 2 2 2 2 Hottest 131 | . 40 80 . 80 80 110 122 131 Shots Fired 802 | . 26 64 . 32 30 149 216 285 Gun 465 | . 26 41 . 16 15 134 140 93 Cannon 299 | . . 23 . 16 15 13 76 156 Launcher 20 | . . . . . . 2 . 18 Special 18 | . . . . . . . . 18 Kinetic 357 | . 26 41 . 16 15 12 76 171 Thermal 107 | . . 23 . 16 15 13 . 40 Explosive 20 | . . . . . . 2 . 18 Electromagnetic 300 | . . . . . . 122 140 38 Robot Hit Streak 16 | . 9 8 . 3 11 16 11 15 Robot Miss Streak 7 | . 2 5 . 4 1 3 5 7 Penetration Max 1 | . . . . . . . 1 1 Secondary Targets 3 | . . 1 . . . 1 1 . Max Gunslinging Chain 1 | . . 1 . . . 1 1 . Shots Hit Robots 460 | . 16 31 . 12 23 93 124 161 Core Hits 262 | . 7 17 . 8 9 35 54 132 Critical Kills 21 | . . . . . . 1 10 10 Critical Parts Destroyed 26 | . . . . . . . 19 7 Critical Strikes 59 | . . . . . . 3 34 22 Meltdown 2 | . . . . . . 1 . 1 Destroy 47 | . . . . . . . 31 16 Blast 4 | . . . . . . . . 4 Corrupt 6 | . . . . . . 2 3 1 Melee Attacks . | . . . . . . . . . Impact . | . . . . . . . . . Slashing . | . . . . . . . . . Piercing . | . . . . . . . . . Sneak Attacks . | . . . . . . . . . Combat Hostiles . | . . . . . . . . . Follow-up Attacks . | . . . . . . . . . Damage Inflicted 12208 | . 211 555 . 212 362 1986 2906 5976 Guns 5049 | . 211 313 . 35 135 1499 1751 1105 Cannons 3664 | . . 207 . 174 227 156 753 2147 Explosions 3306 | . . . . . . 282 350 2674 Melee . | . . . . . . . . . Ramming 189 | . . 35 . 3 . 49 52 50 Kinetic 3598 | . 211 313 . 35 135 65 753 2086 Thermal 2005 | . . 207 . 174 227 255 350 792 Explosive 2762 | . . . . . . 183 . 2579 Electromagnetic 3654 | . . . . . . 1434 1751 469 Impact . | . . . . . . . . . Slashing . | . . . . . . . . . Piercing . | . . . . . . . . . Highest Corruption 38 | . . . . . . 21 28 38 Average Corruption 23 | . . . . . . 20 25 22 Corruption Purged 20 | . . . . . . . . 20 Corruption Blocked . | . . . . . . . . . Effects 293 | . . . . . . 23 111 159 Message Errors 55 | . . . . . . 5 22 28 Matter Fused 61 | . . . . . . 4 23 34 Heat Flow Errors 37 | . . . . . . 3 11 23 Energy Discharges 36 | . . . . . . 3 15 18 Parts Rejected 2 | . . . . . . . 1 1 Parts Fused 1 | . . . . . . . . 1 Data Loss (minor) 34 | . . . . . . 4 12 18 Data Loss (major) 16 | . . . . . . 2 6 8 Misfires 20 | . . . . . . 1 8 11 Alerts 11 | . . . . . . 1 7 3 Misdirections 3 | . . . . . . . . 3 Weapon Failures 17 | . . . . . . . 6 11 Overload Shots . | . . . . . . . . . Overflow Damage 184 | . . 2 . . . . 79 103 Projectiles 16 | . . 2 . . . . . 14 Explosions 168 | . . . . . . . 79 89 Melee . | . . . . . . . . . Knockbacks 22 | . . . . . . . 9 13 Impact 1 | . . . . . . . 1 . Kinetic 19 | . . . . . . . 8 11 Secondary 2 | . . . . . . . . 2 Self-Inflicted Damage 359 | . . . . . . 36 136 187 Shots 6 | . . . . . . 2 2 2 Rammed 20 | . . 3 . 1 . 6 6 4 Targets Rammed 25 | . . 4 . 1 . 8 8 4 Kicked . | . . . . . . . . . Crushed 5 | . . 1 . . . 2 2 . Highest Temperature 386 | . . 315 . 204 36 365 377 386 Average Temperature 115 | . . 89 . 76 18 98 144 104 Received Heat Transfer 3041 | . 66 135 . 42 81 911 783 1023 Effects 24 | . . . . . . 3 15 6 Shutdowns 2 | . . . . . . . . 2 Energy Bleed 7 | . . . . . . 1 4 2 Interference 11 | . . . . . . 2 8 1 Matter Decay 1 | . . . . . . . . 1 Short Circuit 3 | . . . . . . . 3 . Siege Activations . | . . . . . . . . . Robots Corrupted 12 | . . . . . . 7 4 1 Combat Hostiles 12 | . . . . . . 7 4 1 Parts Fried 27 | . . . . . . 11 11 5 Impact Corruptions . | . . . . . . . . . Robots Melted 2 | . . . . . . 1 . 1 Combat Hostiles 1 | . . . . . . 1 . . Parts Melted 5 | . . . . . 1 2 . 2 Heat Transferred 3103 | . . 444 . 370 481 408 300 1100 Parts Sabotaged . | . . . . . . . . . Parts Stolen . | . . . . . . . . . Parts Stripped . | . . . . . . . . . Power Chain Reactions 5 | . . . . . . 2 3 . Alert | -11 -10 -10 -10 -9 -8 -8 -8 -7 ------- Run | Yrd Mat Min Exi Min Mat Gar Mat Fac Peak Influence 937 | . 77 171 . 249 110 937 554 559 Initial 456 | . . 5 . . 18 71 456 231 Average 315 | . 42 67 . 82 58 547 449 300 Maximum Alert Level 3 | . . . . 1 . 3 2 2 Low Security (%) 39 | 100 100 100 . 94 100 20 . 26 Level 1 22 | . . . . 5 . 8 27 45 Level 2 30 | . . . . . . 32 72 27 Level 3 7 | . . . . . . 38 . . Level 4 . | . . . . . . . . . Level 5 . | . . . . . . . . . High Security . | . . . . . . . . . Max Security . | . . . . . . . . . Squads Dispatched 29 | . 1 . . . 3 . 4 21 Investigation 5 | . . . . . . . 2 3 Extermination 4 | . . . . . . . . 4 Reinforcement 6 | . 1 . . . . . 2 3 Assault 1 | . . . . . . . . 1 Garrison 13 | . . . . . 3 . . 10 Intercept . | . . . . . . . . . Searches Triggered . | . . . . . . . . . Construction Impeded 4 | . . . . . . . 2 2 Haulers Reinforced . | . . . . . . . . . Active Scanning Responses . | . . . . . . . . . Cargo Convoy Interrupts 1 | . . . . . . . . 1 Stealth | -11 -10 -10 -10 -9 -8 -8 -8 -7 --------- Run | Yrd Mat Min Exi Min Mat Gar Mat Fac Distress Signals 8 | . . 3 . . . . 3 2 Communications Jammed . | . . . . . . . . . Distress Signals . | . . . . . . . . . Times Spotted 159 | . 5 14 . 8 5 28 37 62 Peak Tracking Total 12 | . 2 3 . 3 1 6 5 12 Tactical Retreats 9 | . . . . 1 . 1 4 3 Traps | -11 -10 -10 -10 -9 -8 -8 -8 -7 ------- Run | Yrd Mat Min Exi Min Mat Gar Mat Fac Traps Triggered 9 | . . . . . . 5 4 . Indirectly . | . . . . . . . . . Trap Hack Attempts . | . . . . . . . . . Triggered . | . . . . . . . . . Disarmed . | . . . . . . . . . Reprogrammed . | . . . . . . . . . Reused 1 | . . 1 . . . . . . Traps Extracted . | . . . . . . . . . Installed 3 | . . 3 . . . . . . Triggered . | . . . . . . . . . Machines | -11 -10 -10 -10 -9 -8 -8 -8 -7 ---------- Run | Yrd Mat Min Exi Min Mat Gar Mat Fac Machines Disabled 21 | . . . . 1 . 7 3 10 Max in Single Turn 3 | . . . . . . 2 1 3 Garrison Access 2 | . . . . . . . . 2 Garrison Relay 4 | . . . . . . 4 . . Phase Generator 1 | . . . . . . 1 . . Machines Repaired . | . . . . . . . . . Machines Dismantled . | . . . . . . . . . Machines Sabotaged . | . . . . . . . . . Overloaded Fab Kills . | . . . . . . . . . Hacking | -11 -10 -10 -10 -9 -8 -8 -8 -7 --------- Run | Yrd Mat Min Exi Min Mat Gar Mat Fac Machines Accessed 25 | . 3 . 2 . 1 3 7 9 Terminals 16 | . 3 . . . . 3 6 4 Fabricators . | . . . . . . . . . Repair Stations 2 | . . . . . . . 1 1 Recycling Units 1 | . . . . . . . . 1 Scanalyzers 1 | . . . . . . . . 1 Garrison Access 3 | . . . . . 1 . . 2 Total Hacks 63 | . 8 . 2 . 1 7 18 27 Successful 28 | . 1 . 2 . 1 3 8 13 Failed 34 | . 6 . . . . 4 10 14 Catastrophic 2 | . 1 . . . . . 1 . Database Lockouts 1 | . 1 . . . . . . . Manual 23 | . 7 . 1 . . 1 6 8 Terminals 37 | . 8 . . . . 7 14 8 Fabricators . | . . . . . . . . . Repair Stations 10 | . . . . . . . 4 6 Recycling Units 2 | . . . . . . . . 2 Scanalyzers 4 | . . . . . . . . 4 Garrison Access 8 | . . . . . 1 . . 7 Terminal Hacks 11 | . 1 . 2 . . 3 3 2 Record 1 | . . . 1 . . . . . Prototype ID Bank 2 | . 1 . . . . . 1 . Open Door 1 | . . . . . . 1 . . Branch Access Points 1 | . . . . . . . 1 . Terminal Index 1 | . . . . . . . . 1 Transport Status 1 | . . . . . . . 1 . Zone Layout 1 | . . . . . . . . 1 Garrison Registry 1 | . . . . . . 1 . . Patrol Navigation 1 | . . . . . . 1 . . Derelict Proto ID Bank 1 | . . . 1 . . . . . Fabricator Hacks . | . . . . . . . . . Repair Station Hacks 7 | . . . . . . . 4 3 Scan Component 4 | . . . . . . . 2 2 Repair 3 | . . . . . . . 2 1 Recycling Unit Hacks . | . . . . . . . . . Scanalyzer 2 | . . . . . . . . 2 Insert Component 2 | . . . . . . . . 2 Garrison Access Hacks 4 | . . . . . 1 . . 3 Unlock Access 1 | . . . . . 1 . . . Seal Access 1 | . . . . . . . . 1 Coupler Status 2 | . . . . . . . . 2 Unauthorized Hacks 4 | . . . . . . . 1 3 Terminals 1 | . . . . . . . 1 . Botnet 1 | . . . . . . . 1 . Fabricators . | . . . . . . . . . Repair Stations . | . . . . . . . . . Recycling Units 1 | . . . . . . . . 1 Reject 1 | . . . . . . . . 1 Scanalyzers . | . . . . . . . . . Garrison Access 2 | . . . . . . . . 2 Restock 1 | . . . . . . . . 1 Eject 1 | . . . . . . . . 1 Data Cores Recovered 1 | . . . . . . . 1 . Used . | . . . . . . . . . Hacking Detections 20 | . 3 . . . . 2 6 9 Full Trace Events 5 | . 1 . . . . . 2 2 Feedback Events . | . . . . . . . . . Feedback Blocked . | . . . . . . . . . Robot Schematics Acquired . | . . . . . . . . . Robots Built . | . . . . . . . . . Authchips . | . . . . . . . . . Time . | . . . . . . . . . Total Robot Build Rating . | . . . . . . . . . Part Schematics Acquired . | . . . . . . . . . Parts Built . | . . . . . . . . . Authchips . | . . . . . . . . . Time . | . . . . . . . . . Total Part Build Rating . | . . . . . . . . . Parts Repaired 2 | . . . . . . . 1 1 Time 102 | . . . . . . . 76 26 Parts Recycled . | . . . . . . . . . Recycled Matter . | . . . . . . . . . Retrieved Matter . | . . . . . . . . . Retrieved Components . | . . . . . . . . . Parts Scanalyzed 1 | . . . . . . . . 1 Part Schematics Acquired . | . . . . . . . . . Parts Damaged . | . . . . . . . . . Bothacking | -11 -10 -10 -10 -9 -8 -8 -8 -7 ------------ Run | Yrd Mat Min Exi Min Mat Gar Mat Fac Used RIF Installer 2 | . . . . . . 2 . . Threat Obfuscator 1 | . . . . . . 1 . . Robots Hacked 9 | . . . . . . . . 9 Non-combat 2 | . . . . . . . . 2 Combat 7 | . . . . . . . . 7 Robot Hacks Applied 11 | . . . . . . . . 11 parse_system 2 | . . . . . . . . 2 scatter_targeting 1 | . . . . . . . . 1 amplify_resonance 2 | . . . . . . . . 2 overwrite_iff 1 | . . . . . . . . 1 formatsys_high 5 | . . . . . . . . 5 Relay Couplers Released 26 | . . . . . . 13 . 13 Ejected 3 | . . . . . . . . 3 Machine Destruction 13 | . . . . . . 13 . . Programmers 10 | . . . . . . . . 10 Attached 6 | . . . . . . . . 6 Fabnet Peak Effective % . | . . . . . . . . . Robots Rewired 3 | . . . . . . 3 . . Allies Hacked . | . . . . . . . . . Hacks Repelled . | . . . . . . . . . Allies | -11 -10 -10 -10 -9 -8 -8 -8 -7 -------- Run | Yrd Mat Min Exi Min Mat Gar Mat Fac Total Allies 13 | . . 3 . 1 . 3 . 6 Largest Group 5 | . . 3 . 1 . 3 . 5 Highest-Rated Group 128 | . . 40 . 31 . 87 . 128 Highest-Rated Ally 32 | . . 16 . 31 . 31 . 32 Total Orders 7 | . . . . . . 1 . 6 STAY 6 | . . . . . . 1 . 5 EXPLORE 1 | . . . . . . . . 1 Ally Attacks 87 | . . 24 . 7 . 24 . 32 Total Damage 1594 | . . 250 . 104 . 448 . 792 Kills 20 | . . 8 . 3 . 4 . 5 Allies Corrupted . | . . . . . . . . . Allies Melted . | . . . . . . . . . Intel | -11 -10 -10 -10 -9 -8 -8 -8 -7 ------- Run | Yrd Mat Min Exi Min Mat Gar Mat Fac Robot Analysis Total . | . . . . . . . . . Derelict Logs Recovered 3 | . . 2 . 1 . . . . Drone Launches 1 | . . . . . . . . 1 Drone Recoveries 1 | . . . . . . . . 1 Exploration | -11 -10 -10 -10 -9 -8 -8 -8 -7 ------------- Run | Yrd Mat Min Exi Min Mat Gar Mat Fac Turns Passed 11388 | 80 593 1389 893 589 153 1991 2199 3501 Spaces Moved 3892 | 44 332 542 223 131 39 658 644 1279 Core 4 | 4 . . . . . . . . Treads 2594 | 40 332 542 223 131 39 658 562 67 Legs . | . . . . . . . . . Wheels 1294 | . . . . . . . 82 1212 Hover . | . . . . . . . . . Flight . | . . . . . . . . . Fastest Speed 50 | 50 160 160 400 400 240 240 200 130 Average Speed 228 | 150 160 224 400 400 240 240 245 188 Slowest Speed 800 | 160 160 400 400 400 240 241 800 322 Overloaded Moves . | . . . . . . . . . Propulsion Burnouts . | . . . . . . . . . Robots Hopped . | . . . . . . . . . Cave-ins Triggered . | . . . . . . . . . Exploration Rate (%) 48 | 3 54 88 60 40 8 89 66 27 Regions Visited 8 Branch Regions 3 Pre-discovered Areas 2 | . . 1 1 . . . . . Known Exits Taken 3 | . . 1 . 1 1 . . . Unknown Exits Taken 4 | 1 1 . 1 . . . 1 . Scrap Searched 2 | . . . . 2 . . . . Spaces Dug 5 | . . . . . . . . 5 Terrain Destroyed 214 | . . . . . . 68 59 87 Melee . | . . . . . . . . . Projectile 36 | . . . . . . . . 36 AOE 178 | . . . . . . 68 59 51 Terrain Rammed . | . . . . . . . . . Walls Destroyed . | . . . . . . . . . Machines Disabled . | . . . . . . . . . Actions | -11 -10 -10 -10 -9 -8 -8 -8 -7 --------- Run | Yrd Mat Min Exi Min Mat Gar Mat Fac Total 5599 | 55 370 650 228 167 70 923 1039 2097 Wait 844 | . 5 33 . 9 . 56 246 495 Move 3885 | 43 331 541 222 130 39 657 643 1279 Hop . | . . . . . . . . . Pick Up 142 | 6 11 27 3 5 6 34 7 43 Fast Attach 46 | 6 2 . . . . 6 7 25 Attach 34 | . . 1 . . 5 7 5 16 Detach 3 | . 1 . . . . . . 2 Swap 42 | . 1 3 . 1 2 13 3 19 Drop 97 | . 6 6 3 5 3 33 6 35 Fire 451 | . 13 32 . 16 15 83 114 178 Melee . | . . . . . . . . . Ram 4 | . . . . . . . . 4 Kick . | . . . . . . . . . Crush 21 | . . 4 . 1 . 8 8 . Escape Stasis 8 | . . . . . . 8 . . Rewire 19 | . . . . . . 18 . 1 Trap 3 | . . 3 . . . . . . Miscellaneous . | . . . . . . . . . Route ------- -11/Scrapyard -10/Materials (discovered 2 exits: [*Mat] / [*Min]) -10/Mines -10/Exiles -9/Mines (discovered 2 exits: *Mat x2) -8/Materials -8/Garrison (discovered 3 exits: *Mat x3) -8/Materials (discovered 3 exits: *Fac / *Sto x2) -7/Factory History --------- Turn | Location | Event 3 | -11/Scrapyard | Discovered new exit (range 15) 81 | -11/Scrapyard | Entered Materials 306 | -10/Materials | Build established: Mutant 314 | -10/Materials | Discovered new exit (range 11) 505 | -10/Materials | Discovered new exit (range 16) 652 | -10/Materials | Central database locked down 674 | -10/Materials | Entered Mines 733 | -10/Mines | Assisted by bots powering up and referring to "LRC-V3" 1136 | -10/Mines | YI-UF0 nonchalantly dropped a Grenade Launcher on the ground 1178 | -10/Mines | Identified exit to Exiles 1190 | -10/Mines | Learned Materials security intel 1220 | -10/Mines | Excavation squad dispatched 1220 | -10/Mines | A large section of the Mines collapsed 1313 | -10/Mines | Found a hidden stash of uninstalled traps 1375 | -10/Mines | Joined a pair of Derelicts in attacking an 0b10 outpost 1470 | -10/Mines | Excavation squad dispatched 1678 | -10/Mines | Found Prototype Storage 1683 | -10/Mines | Build established: Hauler-Mutant 1720 | -10/Mines | Excavation squad dispatched 1884 | -10/Mines | Learned location of Storage (-8) 1970 | -10/Mines | Excavation squad dispatched 2047 | -10/Mines | Deemed a non-threat by the Exiles lab entrance 2063 | -10/Mines | Entered Exiles 2163 | -10/Exiles | Met 8R-AWN 2231 | -10/Exiles | Met EX-HEX 2339 | -10/Exiles | Met EX-BIN 2387 | -10/Exiles | Aligned with FarCom system 2391 | -10/Exiles | Given EX-Vault access code 2487 | -10/Exiles | Opened EX-Vault 2520 | -10/Exiles | Found Cloak of Protection 2545 | -10/Exiles | Found XL Autogun Array 2563 | -10/Exiles | Found Supersonic Drone Bay 2644 | -10/Exiles | Warned to stay clear of 0b10 Research branches 2756 | -10/Exiles | Met EX-DEC 2800 | -10/Exiles | Learned location of Zion (-7) 2916 | -10/Exiles | Discovered new exit (range 10) 2956 | -10/Exiles | Stole three prototypes: Cloak of Protection, Supersonic Drone Bay, XL Autogun Array 2956 | -10/Exiles | Entered Mines 2959 | -9/Mines | Met a Derelict bent on vengeance 2959 | -9/Mines | Received a Mining Laser from a helpful Derelict 3295 | -9/Mines | Identified exit to Materials 3517 | -9/Mines | Discovered exit to Materials (range 7) 3545 | -9/Mines | Entered Materials 3545 | -8/Materials | Evolved 4 slots: Propulsion x4 3698 | -8/Materials | Identified exit to Garrison 3698 | -8/Materials | Entered Garrison 3788 | -8/Garrison | Triggered checkpoint 3790 | -8/Garrison | Garrison Relay disabled 3832 | -8/Garrison | Discovered new exit (range 33) 3832 | -8/Garrison | Discovered new exit (range 81) 3832 | -8/Garrison | Discovered new exit (range 72) 3948 | -8/Garrison | Triggered checkpoint 4106 | -8/Garrison | Triggered checkpoint 4177 | -8/Garrison | Destroyed 9 combat bots 4250 | -8/Garrison | Triggered checkpoint 4383 | -8/Garrison | Installed Relay Interface Framework 4429 | -8/Garrison | Phase Generator disabled 4484 | -8/Garrison | Expanded RIF knowledge: Threat Obfuscation 4578 | -8/Garrison | Garrison Relay disabled 4720 | -8/Garrison | Triggered checkpoint 4920 | -8/Garrison | Triggered checkpoint 4964 | -8/Garrison | Triggered checkpoint 5070 | -8/Garrison | Triggered checkpoint 5109 | -8/Garrison | Spotted B-75 Beast 5142 | -8/Garrison | Lost 3 allies 5151 | -8/Garrison | Destroyed B-75 Beast 5184 | -8/Garrison | System corruption reached 10% 5343 | -8/Garrison | Garrison Relay disabled 5569 | -8/Garrison | Triggered checkpoint 5635 | -8/Garrison | Garrison Relay disabled 5689 | -8/Garrison | Entered Materials 6063 | -8/Materials | Repaired Rocket Launcher 6668 | -8/Materials | Identified exit to Storage 6842 | -8/Materials | Core integrity fell below 50% 6915 | -8/Materials | Lost 3 parts (3n) 7599 | -8/Materials | Lost 3 parts (3n) 7815 | -8/Materials | Core integrity fell below 20% 7843 | -8/Materials | Discovered new exit (range 8) 7888 | -8/Materials | Entered Factory 7888 | -7/Factory | Evolved 2 slots: Propulsion x1, Utility x1 7888 | -7/Factory | Identified YI-UF0's Bottomless Matter Pit 7890 | -7/Factory | FarCom data flow suspended 8127 | -7/Factory | System corruption reached 10% 9179 | -7/Factory | Build established: Bothacker-Mutant 9212 | -7/Factory | Cargo convoy interrupted 9260 | -7/Factory | Lost 5 allies 9286 | -7/Factory | Lost 7 parts (1p5n1w) 9295 | -7/Factory | Destroyed 11 combat bots 9445 | -7/Factory | Lost 3 parts (1n2w) 9731 | -7/Factory | Garrison activated, responded to threat 9733 | -7/Factory | Core integrity fell below 50% 9812 | -7/Factory | System corruption reached 30% 9842 | -7/Factory | Lost 3 parts (3n) 10074 | -7/Factory | Build established: Hauler-Mutant 10699 | -7/Factory | Repaired Grenade Launcher 11173 | -7/Factory | Garrison activated, responded to threat 11217 | -7/Factory | Core integrity fell below 20% 11243 | -7/Factory | Lost 8 parts (2p4n2w) 11389 | -7/Factory | Destroyed self via exploding Power Conduit Last Messages --------------- 11326_ Slug penetrates Wall. 11330_ System corrupted: Matter fused (-9). 11331_ Acquired 24 matter. 11333_ Acquired 21 matter. 11344_ R-06 Scavenger collects Unknown Engine. 11347_ System corrupted: Heat flow error (+188). 11351_ R-06 Scavenger collects Terrain Scan Processor. 11378_ P8,L45OP LXFZKN99G 11381_ Arm. Huge Wheel destroyed. 11386_ System corrupted: Gauss Cannon jammed. 11386_ Slug penetrates Y-54 Guardian. 11386_ Y-54 Guardian destroyed. 11389_ Power Conduit explodes. 11389_ Fabricator disabled. 11389_ Destroyed Wheel. 11389_ Imp. Recalibrator melted. 11389_ M-28 Smith destroyed. 11389_ Gauss Cannon destroyed. 11389_ Destroyed Gauss Cannon. Map ----- +----------------------------------------------------+ | ?????????????????????????????????????????????????? | | ?????????????????????????????????????????????????? | | ???????????????????????????????##############????? | | ???????????????????????????????# #????? | | ???????????????????????????????# #????? | | ???????????????????????????????#! #????? | | ???????????????????????????????# #????? | | ???????????????????????????????# #????? | | ???????????????????????????????# #????? | | ???????????????????????????????# #????? | | ???????????????????????????????# #????? | | ???????????????????????????????# #????? | | ???????????????????????????????? #????? | | ?????????????????????????????????? #????? | | ???????????????????????????????????? ?????? | | ????????????????????#+##+#############+###+####### | | ????????????????????#^ | | ????????????????????# ^ | | ????????????????????+ % | | ????????????????????# % % | | ????????????????????+ ^ | | ????????????????????####/#############+########### | | ????????????????????# m u ## % ##! | | ????????????????????# ## % ## | | ????????????????????# ## % " """" ## "" | | ?????????########?### @ ; !["" """" ## "" | | ????????????????# ### ;! """ """" ## "" | | ????????????????# # # """" """" ## "" | | ????????????????##### ; ## "" | | ????????????????????# ; """" ## "" | | ?????????#####??????# ;; """" ## "" | | ????????? #??????# %= !;; """" ## | | ????????? #??????# ;; "" "" """" ##= | | ????????? #?????## % % ;; ""G"" ## | | ?????????"" #?????# !################### | | #????????"" #?????## #?????????????????? | | #????????"" #??????# ] #?????????????????? | | +???????? #??????#####;######?????????####????# | | #????????"" #??????????# ############T ###### | | #????????"" ############ % | | #????????"" + T | | #???????? ######### | | #???????? #???????# ############+####### | | #????????#####???????# ## # | | #######??????????????# ! ## ! # | | # #??????????????# !! ## # | | #%""" #??????????????# !! ## ! # | | #%"R" #??????????????# ## ! ! # | | # " " ################ =] ## ! # | | + # ! =] ## # | +----------------------------------------------------+ Best States ------------- Heat Dissipation 61 Energy Generation 16 Energy Capacity 290 Matter Stores 300 Matter Capacity 300 Sight Range 16 Terrain Scan Density 10 Armor Coverage 225 Resistance: TH 15 Evasion (%) 40 Targeting Accuracy 5 Recoil Reduction 6 Relay Coupler Types 1 Relay Coupler Value 31 Item Schematics ----------------- None Robot Schematics ------------------ None Fabricated ------------ Nothing Alien Tech Used ----------------- None Achievements -------------- None Challenges ------------ None Game ------ Seed IonicMultitargetingInsulator Manual? 0 Play Time 01:10:23 Cumulative 197.0 hours Start 2024.04.14 @ 18:15:56 End 2024.04.14 @ 19:28:36 Sessions 1 Manual Loads 0 Difficulty Rogue Special Mode None Game No. 161 Rogue 161 Adventurer 0 Explorer 0 Win Type - Total 4 Types 4/0/0/0/0/0/0/0/0 Lore% 69 Gallery% 77 Achievement% 64 Wizard Run 0 Options --------- Layout 2 ASCII 1 Keyboard 0 Movement Mouse Keybinds 0 Fullscreen 2 Font 24/Smallcaps Map View 50x44 Zoom Use 0% Tactical HUD 1 Map Filters NONE Filters NONE Steam 1 RUN: 4a717baa-433f-4702-959c-1a56be03744d